bitfinex-derivatives/quotes_ETHF0:USTF0_20251024
["timestamp","ask_amount","ask_price","bid_price","bid_amount"]
[1761266332670,0.92903723,3860.0,3859.9,10.02989538]
[1761266333169,0.92903723,3860.0,3859.9,0.85089538]
[1761266333358,0.92903723,3860.0,3859.9,10.02989538]
[1761266334368,0.92903723,3860.0,3859.9,0.85089538]
[1761266334568,0.92903723,3860.0,3859.9,10.02989538]
[1761266334776,0.35583723,3860.0,3859.9,10.02989538]
[1761266334974,0.49593723,3860.0,3859.9,10.02989538]
[1761266335268,0.71323723,3860.0,3859.9,10.02989538]
[1761266336072,0.35583723,3860.0,3859.9,10.02989538]
[1761266336272,0.3539,3860.5,3859.9,10.02989538]
[1761266336468,0.5712,3860.4,3859.9,9.179]
[1761266336770,0.494,3860.0,3859.9,9.6452]
[1761266337070,0.494,3860.0,3859.9,9.6442]
[1761266337268,0.49598303,3860.0,3859.9,9.6442]
[1761266337773,0.3539,3860.6,3860.5,0.46612]
[1761266337964,0.3539,3860.6,3860.5,9.64412]
[1761266338672,0.35621504,3860.6,3860.5,9.64661362]
[1761266339065,0.00231504,3860.6,3860.5,9.64661362]
[1761266339372,0.1293,3861.0,3860.9,0.46608]
[1761266339573,0.4617,3861.0,3860.9,10.49497538]
[1761266340164,0.69297865,3861.0,3860.9,10.02889538]
[1761266340565,0.3324,3861.9,3861.6,0.46599]
[1761266340766,0.57906968,3861.8,3861.7,9.178]
[1761266340972,0.3324,3861.8,3861.7,9.178]
[1761266341172,0.3324,3861.9,3861.8,0.46597]
[1761266341673,0.3352,3861.9,3861.8,0.46597]
[1761266341872,0.3352,3861.9,3861.8,1.31686538]
[1761266345370,0.3304,3861.9,3861.8,1.31686538]
[1761266346275,0.4656,3861.9,3860.9,38.52707745]
[1761266346470,0.5921,3861.0,3860.9,0.85089538]
[1761266346661,0.3632,3861.0,3860.9,10.02589538]
[1761266346970,0.1293,3861.5,3861.1,0.46605]
[1761266347173,0.5921,3861.5,3861.4,0.85089538]
[1761266347476,0.9245,3861.5,3861.4,10.02589538]
[1761266348778,0.9245,3861.5,3861.4,0.85089538]
[1761266349077,0.9245,3861.5,3861.4,10.02589538]
[1761266351576,0.3352,3861.9,3861.7,0.46597]
[1761266351776,0.3352,3861.9,3861.8,10.02589538]
[1761266352772,0.0028,3861.9,3861.8,10.02589538]
[1761266353272,0.3324,3862.7,3862.5,0.46588]
[1761266353473,0.3324,3862.7,3862.6,10.02489538]
[1761266353677,0.3324,3862.7,3862.6,9.174]
[1761266353678,0.7952,3862.7,3862.6,9.174]
[1761266354076,0.7952,3862.6,3862.5,0.85089538]
[1761266354281,0.79770197,3862.6,3862.5,10.02589538]
[1761266355273,0.33490197,3862.6,3862.5,10.02589538]
[1761266355671,0.56380197,3862.6,3862.5,10.02589538]
[1761266356373,0.33490197,3862.6,3862.5,10.02589538]
[1761266357371,0.3324,3863.2,3863.0,0.46582]
[1761266357685,4.09586837,3863.4,3863.1,9.174]
[1761266357982,0.3324,3863.3,3863.1,9.63981]
[1761266358170,0.3324,3863.3,3863.2,0.85089538]
[1761266358370,0.79816588,3863.3,3863.2,0.85089538]
[1761266358676,0.79816588,3863.3,3863.2,10.02689538]
[1761266359384,0.33536588,3863.3,3863.2,10.02689538]
[1761266359678,0.33536588,3863.3,3863.2,10.02589538]
[1761266361576,0.33536588,3863.3,3861.4,38.52707745]
[1761266361577,0.3324,3863.2,3861.4,38.52707745]
[1761266361784,0.2289,3862.2,3862.1,0.85089538]
[1761266361980,0.4628,3862.2,3862.1,0.85089538]
[1761266362379,0.7952,3862.2,3862.1,0.85089538]
[1761266362779,0.3324,3862.1,3862.0,0.46594]
[1761266364884,0.9245,3862.0,3861.9,9.196]
[1761266366079,1.16632874,3862.0,3861.9,9.196]
[1761266366280,0.4617,3862.0,3861.9,9.66196]
[1761266366481,0.3324,3862.3,3862.1,0.46593]
[1761266366678,0.2419519,3862.2,3862.1,0.46593]
[1761266366978,0.3324,3862.3,3862.1,0.46593]
[1761266367372,0.24208127,3862.2,3862.1,0.46593]
[1761266367776,0.57468127,3862.2,3862.0,0.46595]
[1761266367983,0.57468127,3862.1,3862.0,0.46595]
[1761266368174,0.9229,3862.0,3861.9,9.196]
[1761266368378,1.16498127,3862.0,3861.9,9.196]
[1761266368577,0.94678127,3862.0,3861.9,9.196]
[1761266369292,1.16498127,3862.0,3861.9,9.196]
[1761266369700,0.94678127,3862.0,3861.9,9.196]
[1761266369989,0.24208127,3862.0,3861.9,9.196]
[1761266370293,0.3496,3862.3,3861.9,9.196]
[1761266370591,0.3496,3862.3,3862.2,0.46592]
[1761266370788,0.4789,3862.5,3862.4,0.4659]
[1761266370996,0.24229425,3862.5,3862.4,9.6639]
[1761266371788,0.59189425,3862.5,3862.4,9.198]
[1761266372494,0.94749425,3862.5,3862.4,9.198]
[1761266372991,1.16749425,3862.5,3862.4,9.198]
[1761266373493,0.9252,3862.5,3862.4,9.198]
[1761266375696,1.16752656,3862.5,3862.4,9.198]
[1761266375887,1.16752656,3862.5,3862.4,9.6639]
[1761266376082,0.9252,3862.5,3862.4,9.6639]
[1761266376290,0.7052,3862.5,3862.4,9.6639]
[1761266377498,0.9252,3862.5,3862.4,9.198]
[1761266377691,0.4847,3862.5,3862.4,9.198]
[1761266378294,0.4847,3862.5,3862.4,9.6639]
[1761266378499,0.7052,3862.5,3862.4,9.6639]
[1761266379498,0.9252,3862.5,3862.4,9.6639]
[1761266383604,0.9252,3862.5,3862.4,9.198]
[1761266384906,0.4847,3862.5,3862.4,9.95295383]
[1761266385106,0.3496,3862.8,3862.4,9.95295383]
[1761266385309,0.3496,3862.8,3862.7,0.75495383]
[1761266385497,0.80965524,3862.8,3862.7,0.75495383]
[1761266385897,1.02965524,3862.8,3862.7,0.75495383]
[1761266386913,0.80965524,3862.8,3862.7,0.75495383]
[1761266387102,0.58915524,3862.8,3862.7,0.75495383]
[1761266387304,0.3496,3862.8,3862.7,0.75495383]
[1761266388110,0.3496,3862.9,3862.8,0.46585]
[1761266389515,0.7901,3862.9,3862.8,0.46585]
[1761266390312,0.7901,3862.8,3862.7,9.95195383]
[1761266390613,1.0296999,3862.8,3862.7,9.197]
[1761266390911,0.9252,3862.5,3862.4,0.75495383]
[1761266391713,0.9252,3862.5,3862.3,9.65991]
[1761266391714,0.3496,3862.4,3862.3,9.194]
[1761266392013,0.7901,3862.4,3862.3,9.194]
[1761266392210,0.3496,3862.4,3862.3,9.194]
[1761266393412,0.5701,3862.4,3862.3,9.194]
[1761266394304,0.7901,3862.4,3862.3,9.194]
[1761266397112,1.0298384,3862.4,3862.3,9.194]
[1761266398217,0.8098384,3862.4,3862.3,9.194]
[1761266399112,0.4541,3861.9,3861.7,0.92707745]
[1761266399307,0.4541,3861.9,3861.5,0.92707745]
[1761266399507,0.4541,3861.4,3861.3,0.75495383]
[1761266399711,1.05056066,3861.4,3861.3,0.75495383]
[1761266400918,0.82416066,3861.4,3861.3,0.75495383]
[1761266401216,0.59645542,3861.4,3861.3,0.75495383]
[1761266401616,0.59645542,3861.4,3861.3,9.94695383]
[1761266401820,0.3566,3861.4,3861.3,9.94695383]
[1761266402214,1.05037869,3861.4,3861.3,9.94695383]
[1761266402515,0.8107,3861.4,3861.3,9.94695383]
[1761266403914,0.3566,3861.9,3861.8,0.46596]
[1761266404116,0.3566,3862.2,3862.1,0.46594]
[1761266404312,0.5843,3862.2,3862.1,0.75495383]
[1761266404821,0.5843,3862.2,3862.1,9.95195383]
[1761266405418,0.1351,3862.5,3862.4,0.4659]
[1761266405619,0.1351,3862.5,3862.4,1.22085383]
[1761266406116,0.7194,3862.5,3862.4,1.22085383]
[1761266406323,0.96606317,3862.5,3862.4,1.22085383]
[1761266406621,0.3566,3862.9,3862.7,0.46586]
[1761266406822,0.1376,3862.5,3862.4,9.66189]
[1761266407125,0.9483,3862.5,3862.4,9.66189]
[1761266408026,0.5843,3862.1,3862.0,0.92707745]
[1761266408216,0.8107,3862.1,3862.0,9.203]
[1761266408709,0.1376,3862.5,3861.5,0.92707745]
[1761266408710,0.4942,3862.0,3861.5,0.92707745]
[1761266408911,0.9483,3861.5,3861.4,0.92707745]
[1761266409118,0.2277,3861.2,3860.9,0.92707745]
[1761266409308,0.4942,3861.0,3860.9,0.46608]
[1761266409513,0.4942,3861.0,3860.9,9.67108]
[1761266410220,0.3653,3861.5,3861.3,0.46602]
[1761266410724,0.3566,3861.4,3861.3,0.46602]
[1761266411516,0.5843,3861.4,3861.3,0.46602]
[1761266411711,0.3566,3861.3,3861.1,0.46605]
[1761266412921,0.3566,3861.3,3861.0,2.50958776]
[1761266413116,0.3566,3861.1,3861.0,2.50958776]
[1761266413321,0.5843,3861.1,3861.0,2.50958776]
[1761266413720,0.93142189,3861.8,3861.0,2.50958776]
[1761266414027,0.1376,3862.0,3861.8,0.46597]
[1761266414216,0.24642193,3861.9,3861.8,9.67297]
[1761266414420,0.60302193,3861.9,3861.8,9.67297]
[1761266415423,0.93142189,3862.4,3862.2,0.46592]
[1761266415620,0.5843,3862.2,3862.0,0.46594]
[1761266415823,0.83072,3862.1,3862.0,0.46594]
[1761266416313,0.3566,3862.4,3862.3,0.46591]
[1761266416514,0.8307197,3862.4,3862.3,0.46591]
[1761266416930,0.3566,3862.3,3862.2,9.207]
[1761266417224,1.0571197,3862.3,3862.2,9.207]
[1761266419919,0.8107,3861.9,3861.8,0.46596]
[1761266420118,1.05725112,3861.9,3861.8,0.46596]
[1761266420820,0.3566,3861.8,3861.6,9.67599]
[1761266421025,1.05732614,3861.7,3861.6,9.67599]
[1761266421223,1.05732614,3861.7,3861.6,9.21]
[1761266421618,0.83092614,3861.7,3861.6,9.21]
[1761266421819,0.60322614,3861.7,3861.6,9.21]
[1761266422326,0.24662614,3861.7,3861.6,9.21]
[1761266422627,0.5843,3862.2,3862.1,0.46594]
[1761266422828,1.05734579,3862.2,3862.1,0.46594]
[1761266423218,0.8107,3861.8,3861.7,0.46598]
[1761266425130,0.5843,3861.8,3861.7,0.46598]
[1761266425430,0.3566,3861.9,3861.7,2.50958776]
[1761266426129,0.3566,3861.9,3861.7,2.97556776]
[1761266426927,0.342,3861.8,3861.7,2.97556776]
[1761266427130,0.5595,3861.8,3861.7,2.97556776]
[1761266427621,0.342,3861.7,3861.6,9.21]
[1761266427822,0.5595,3861.7,3861.6,9.21]
[1761266428834,0.7769,3861.7,3861.6,9.21]
[1761266432724,0.7769,3861.7,3861.6,10.0596468]
[1761266433331,0.342,3861.7,3861.6,10.0596468]
[1761266434430,0.5681,3861.7,3861.6,10.0596468]
[1761266434625,0.2261,3861.4,3861.2,0.92707745]
[1761266434823,0.5726,3861.3,3861.2,1.3156868]
[1761266435030,0.8059,3861.3,3861.2,10.5156868]
[1761266436632,0.3465,3861.3,3861.2,10.5156868]
[1761266436832,0.5726,3861.3,3861.2,10.5156868]
[1761266438734,0.8059,3861.3,3861.2,10.0496468]
[1761266442934,0.5726,3861.3,3861.2,10.0496468]
[1761266445540,0.4838,3861.5,3861.3,0.46603]
[1761266446541,0.3465,3861.4,3861.3,0.46603]
[1761266446943,0.3465,3861.8,3861.2,10.0496468]
[1761266447140,0.3637,3862.0,3861.7,0.8496468]
[1761266447450,0.47260497,3861.9,3861.7,0.8496468]
[1761266447745,0.59300497,3861.8,3861.7,1.3156268]
[1761266448546,0.59300497,3861.8,3861.7,0.8496468]
[1761266450836,0.81910497,3861.8,3861.7,0.8496468]
[1761266452151,0.81916652,3861.8,3861.7,0.8496468]
[1761266452547,0.59306652,3861.8,3861.7,0.8496468]
[1761266452752,0.3465,3861.8,3861.7,0.8496468]
[1761266453551,0.5930813,3861.8,3861.7,0.8496468]
[1761266456547,1.75060319,3861.8,3861.7,0.8496468]
[1761266457042,1.17800319,3861.8,3861.7,0.8496468]
[1761266457241,0.5930813,3861.8,3861.7,0.8496468]
[1761266458849,1.0524813,3861.8,3861.7,0.8496468]
[1761266459944,0.5878,3861.5,3861.4,0.8496468]
[1761266460144,0.7147813,3861.5,3861.4,10.0326468]
[1761266460355,0.2465813,3861.5,3861.4,10.0326468]
[1761266460546,0.5770813,3861.8,3861.7,0.46599]
[1761266460844,0.57716552,3861.8,3861.7,1.3156368]
[1761266461250,0.24666552,3861.8,3861.7,1.3156368]
[1761266461552,0.4681,3862.0,3861.9,0.46596]
[1761266461749,0.24660936,3862.0,3861.9,9.64696]
[1761266461946,0.93142189,3862.7,3862.5,0.46589]
[1761266462155,0.3305,3862.8,3862.7,0.46586]
[1761266462345,0.93142189,3863.1,3862.9,0.46584]
[1761266462544,0.93142189,3863.1,3862.9,9.65184]
[1761266462747,0.00296588,3863.3,3862.9,9.65184]
[1761266462951,0.4681,3863.0,3862.9,9.65184]
[1761266464744,0.00296588,3863.3,3863.2,0.4658]
[1761266464942,0.33346588,3863.3,3863.2,1.3154468]
[1761266465546,0.00296588,3863.3,3863.2,1.3154468]
[1761266467050,0.33346588,3863.3,3863.2,1.3154468]
[1761266467247,0.00296588,3863.3,3863.2,1.3154468]
[1761266467453,0.3305,3863.8,3863.7,0.46574]
[1761266467661,0.3305,3863.9,3863.7,10.4973868]
[1761266468753,0.56330008,3863.9,3863.7,10.49927325]
[1761266468946,0.56330008,3863.9,3863.7,0.00188645]
[1761266468947,0.7806,3863.8,3863.7,0.00188645]
[1761266471750,0.6981,3862.5,3862.3,0.92707745]
[1761266472041,0.6981,3862.5,3862.1,1.39387631]
[1761266472042,0.7806,3862.3,3862.2,9.19]
[1761266472250,1.78106869,3863.8,3862.4,0.4412]
[1761266472251,0.93142189,3863.8,3862.4,0.4412]
[1761266472457,0.1377,3865.0,3863.7,1.6992936]
[1761266472648,0.1377,3864.5,3864.0,0.4657]
[1761266472848,0.1377,3864.5,3863.8,8.06907745]
[1761266472849,0.1377,3864.5,3864.4,0.8496468]
[1761266473055,0.5878,3864.5,3864.1,9.7647]
[1761266473351,0.3676,3864.0,3863.8,1.3153668]
[1761266473652,0.37035499,3864.0,3863.8,0.85163905]
[1761266473855,0.2202,3863.9,3863.8,0.85163905]
[1761266474059,0.4501,3863.9,3863.8,0.85163905]
[1761266474359,0.7806,3863.9,3863.8,0.85163905]
[1761266476853,0.3305,3863.9,3863.8,0.85163905]
[1761266478046,0.5604,3863.9,3863.8,0.85163905]
[1761266478248,0.3305,3864.4,3863.9,0.46572]
[1761266478457,0.4682,3865.0,3864.9,0.4656]
[1761266478661,0.1377,3866.0,3865.4,0.46554]
[1761266478960,0.1377,3866.0,3865.4,1.3151868]
[1761266479159,0.3305,3866.4,3865.4,6.6992936]
[1761266479462,0.1377,3866.5,3865.4,6.6992936]
[1761266479463,0.00291421,3865.5,3865.4,10.6591868]
[1761266479652,0.3305,3866.2,3866.0,0.46545]
[1761266480153,0.1377,3866.5,3865.4,10.1936468]
[1761266480154,0.1377,3866.0,3865.4,10.1936468]
[1761266480457,0.4682,3865.5,3865.4,9.344]
[1761266480652,0.4700876,3865.5,3865.4,12.25051703]
[1761266481256,0.597,3868.0,3865.4,12.25051703]
[1761266481257,0.1377,3867.5,3865.9,1.1637]
[1761266481560,0.6981,3867.0,3866.9,2.90651703]
[1761266481752,0.9183,3867.0,3866.9,2.90651703]
[1761266482248,0.92028501,3867.0,3866.9,2.90894249]
[1761266482452,0.1377,3868.5,3866.9,0.00242546]
[1761266482651,0.3305,3868.3,3867.0,0.065]
[1761266482854,0.1377,3868.0,3867.0,0.065]
[1761266483058,0.1377,3867.0,3866.9,0.00242546]
[1761266483250,0.4682,3867.0,3866.9,0.46778546]
[1761266483450,0.47018848,3867.0,3866.9,0.46778546]
[1761266483652,0.47018848,3867.0,3866.9,0.00242546]
[1761266484063,0.47018848,3867.0,3866.1,2.90651703]
[1761266484064,0.3305,3866.4,3866.1,2.90651703]
[1761266484259,0.1377,3866.5,3865.9,0.46547]
[1761266484260,0.1377,3866.0,3865.9,0.46547]
[1761266484448,0.4682,3866.0,3865.9,0.46547]
[1761266484653,0.3305,3865.9,3865.6,0.4655]
[1761266484957,0.3305,3865.9,3865.7,0.46549]
[1761266485853,0.3305,3865.9,3865.6,0.00212067]
[1761266486751,0.7806,3865.7,3865.6,0.00212067]
[1761266487152,0.5604,3865.7,3865.6,0.00212067]
[1761266487352,0.3305,3865.7,3865.6,0.00212067]
[1761266487749,0.4721,3866.0,3865.8,0.46548]
[1761266487957,0.3344,3865.9,3865.8,0.46548]
[1761266490262,0.5542,3865.9,3865.8,0.46548]
[1761266490664,0.7828,3865.7,3865.6,0.00212067]
[1761266497359,1.02492262,3865.7,3865.6,0.00212067]
[1761266498675,0.7828,3865.2,3865.1,2.50630904]
[1761266499569,0.7828,3865.2,3865.1,2.50846751]
[1761266501770,0.7828,3865.2,3865.1,0.00215847]
[1761266502270,0.1332,3865.0,3864.6,2.50630904]
[1761266502476,0.7828,3864.7,3864.6,2.50630904]
[1761266502869,0.1332,3864.5,3864.2,0.46568]
[1761266503077,0.7828,3864.3,3864.2,0.46568]
[1761266503275,0.7828,3864.3,3864.2,0.46787055]
[1761266504078,0.7828,3864.3,3864.2,0.00219055]
[1761266505077,0.7828,3864.3,3864.2,0.6945407]
[1761266507279,0.7828,3864.3,3864.2,0.00219055]
[1761266510579,0.7828,3864.3,3864.2,0.46787055]
[1761266511784,0.3236,3864.3,3864.2,0.46787055]
[1761266513189,0.3236,3864.3,3864.2,1.16116014]
[1761266514195,0.7828,3864.3,3864.2,1.16116014]
[1761266514389,0.3236,3864.3,3864.2,1.16116014]
[1761266514693,0.5579,3864.3,3864.2,1.16116014]
[1761266515195,0.3236,3864.3,3864.2,0.46787055]
[1761266515495,0.5579,3864.3,3864.2,0.46787055]
[1761266515893,0.7828,3864.3,3864.2,1.1620749]
[1761266518793,0.7828,3864.3,3864.2,1.91609464]
[1761266519093,0.7828,3864.3,3864.2,1.22189029]
[1761266519999,0.5579,3864.3,3864.2,1.22189029]
[1761266520195,0.5579,3864.3,3864.2,2.14896774]
[1761266520387,0.1332,3864.5,3864.2,2.14896774]
[1761266520388,0.3495,3864.5,3864.4,0.60356]
[1761266520594,0.3495,3864.5,3864.4,1.43636037]
[1761266520897,0.3495,3865.0,3864.9,0.4572]
[1761266521088,0.3495,3865.0,3864.9,1.96523948]
[1761266521290,0.82461536,3865.0,3864.9,0.75401974]
[1761266522494,1.16931536,3865.0,3864.9,0.75401974]
[1761266524795,1.16931536,3865.0,3864.9,0.97461974]
[1761266525098,1.16931536,3865.0,3864.9,0.75401974]
[1761266525298,1.16931536,3865.0,3864.9,1.44867752]
[1761266525994,0.3447,3864.9,3864.6,0.75401974]
[1761266526199,0.7925,3864.7,3864.6,0.75401974]
[1761266526394,1.03611536,3864.7,3864.6,0.75401974]
[1761266527594,1.03611536,3864.7,3864.6,0.97461974]
[1761266527799,0.4478,3865.3,3865.2,0.5601]
[1761266527999,0.4478,3865.3,3865.2,1.31411974]
[1761266528300,0.4478,3865.3,3865.2,0.75401974]
[1761266528693,0.4478,3865.3,3864.9,0.75401974]
[1761266528903,0.4478,3865.3,3865.2,0.75401974]
[1761266529793,0.7925,3865.3,3865.2,0.75401974]
[1761266531398,0.3447,3865.2,3864.9,0.75401974]
[1761266531596,0.2163,3864.8,3864.7,0.75401974]
[1761266531796,0.7925,3864.8,3864.7,0.75401974]
[1761266532696,0.3447,3865.3,3864.8,0.3395]
[1761266532896,0.7925,3865.3,3865.2,0.75401974]
[1761266534207,0.7925,3865.3,3864.9,0.75401974]
[1761266534208,0.4478,3865.0,3864.9,0.75401974]
[1761266534404,0.7925,3865.0,3864.9,0.75401974]
[1761266536903,0.4478,3864.5,3864.4,0.3395]
[1761266537203,0.7925,3864.4,3864.3,1.09351974]
[1761266537398,0.7925,3864.4,3864.3,1.31411974]
[1761266537599,0.2163,3864.4,3864.3,1.21121974]
[1761266537795,0.7925,3864.4,3864.3,1.21121974]
[1761266538206,0.7925,3864.4,3864.3,1.55071974]
[1761266538406,0.92517665,3864.9,3864.3,1.55071974]
[1761266538407,0.4478,3864.6,3864.5,0.5939]
[1761266538608,0.7925,3864.6,3864.5,0.75401974]
[1761266539199,0.7925,3864.3,3864.2,0.00219055]
[1761266539700,1.03402144,3864.3,3864.2,0.34169055]
[1761266539907,1.03402144,3864.3,3864.2,1.31631029]
[1761266540603,1.03402144,3864.3,3864.2,1.55291029]
[1761266540604,0.24152144,3864.3,3864.2,1.55291029]
[1761266540808,0.2163,3865.0,3864.9,0.7967]
[1761266540998,0.2163,3865.2,3865.1,0.7967]
[1761266541193,0.3447,3865.4,3865.2,0.3395]
[1761266541194,1.14147665,3865.4,3865.2,0.3395]
[1761266541396,1.37297665,3865.4,3865.3,1.55071974]
[1761266541598,1.71767665,3865.4,3865.3,1.55071974]
[1761266541799,1.71767665,3865.4,3865.3,1.31411974]
[1761266542104,0.2163,3865.4,3865.3,1.55071974]
[1761266542506,0.4478,3865.4,3865.3,1.55071974]
[1761266542808,0.7925,3865.4,3865.3,1.55071974]
[1761266543497,0.4478,3865.4,3865.3,1.55071974]
[1761266544011,0.92517665,3865.5,3865.4,0.7967]
[1761266545410,1.71767665,3865.5,3865.4,0.5601]
[1761266545609,1.37297665,3865.5,3865.4,0.7967]
[1761266545804,1.14147665,3865.6,3865.5,0.9334]
[1761266546006,1.71767665,3865.6,3865.5,0.9334]
[1761266546309,0.7925,3865.6,3865.5,0.9334]
[1761266546811,0.2163,3865.2,3865.1,0.7967]
[1761266547001,0.7964,3865.2,3865.1,0.3395]
[1761266547207,0.8089,3864.9,3864.8,0.3291]
[1761266547707,0.8089,3864.9,3864.8,0.557]
[1761266549106,0.7753,3864.7,3864.6,0.5653]
[1761266549303,0.324,3864.6,3864.5,1.08401974]
[1761266549505,0.7753,3864.6,3864.5,1.31931974]
[1761266549802,0.2305,3864.6,3864.5,1.67761974]
[1761266550109,0.4513,3864.6,3864.5,1.67761974]
[1761266550511,0.5545,3864.9,3864.8,0.2353]
[1761266550710,0.2305,3864.9,3864.8,0.7864]
[1761266550910,0.2305,3864.9,3864.8,1.54041974]
[1761266551613,0.4513,3864.9,3864.8,1.54041974]
[1761266552104,0.7753,3864.9,3864.8,1.54041974]
[1761266552804,1.01450298,3864.9,3864.8,1.54041974]
[1761266553507,0.23920298,3864.9,3864.8,1.54041974]
[1761266553708,1.1600631,3865.5,3864.8,1.67601974]
[1761266553912,1.1600631,3865.5,3865.4,0.7864]
[1761266554112,1.62001448,3865.5,3865.4,0.7864]
[1761266554306,1.6200071,3865.5,3865.4,0.7864]
[1761266555314,1.1687071,3865.5,3865.4,1.63459501]
[1761266555509,2.591,3868.1,3866.3,0.33]
[1761266555510,0.9295631,3866.4,3866.3,0.33]
[1761266555708,0.23909378,3866.4,3866.3,1.63459501]
[1761266559209,0.324,3866.9,3866.3,1.63459501]
[1761266559510,0.46853329,3866.8,3866.7,0.5653]
[1761266559711,0.68933329,3866.8,3866.7,0.7864]
[1761266560010,0.7753,3866.4,3866.3,0.5653]
[1761266560210,1.01333329,3866.4,3866.3,0.5653]
[1761266560810,0.4513,3866.4,3866.3,0.7864]
[1761266562218,0.7753,3866.4,3866.3,0.7864]
[1761266562721,0.2305,3866.4,3866.3,0.7864]
[1761266563813,0.2305,3866.4,3866.3,0.5653]
[1761266564009,0.4513,3866.4,3866.3,0.7864]
[1761266564212,0.4513,3866.4,3866.3,1.63459501]
[1761266564412,0.2305,3866.4,3866.3,1.63459501]
[1761266564615,0.32598848,3867.0,3866.4,0.33]
[1761266564814,0.32598848,3867.0,3866.3,0.84819501]
[1761266564815,0.77728848,3867.0,3866.9,0.5653]
[1761266565017,1.01503947,3867.0,3866.9,0.5653]
[1761266565413,0.324,3866.9,3866.6,0.33]
[1761266565618,0.4513,3866.7,3866.6,0.7864]
[1761266565819,0.68905099,3866.7,3866.6,0.7864]
[1761266566316,0.23775099,3866.7,3866.6,0.7864]
[1761266566517,0.00198848,3867.0,3866.9,0.4564]
[1761266566723,0.00198848,3867.0,3866.9,1.25176]
[1761266569619,0.4513,3868.0,3867.9,0.7864]
[1761266569824,0.46778154,3868.0,3867.9,0.7864]
[1761266570227,0.2305,3868.0,3867.9,0.7864]
[1761266570623,0.23308814,3868.0,3867.9,0.78824311]
[1761266570817,0.00258814,3868.0,3867.9,0.78824311]
[1761266571929,0.23308814,3868.0,3867.9,0.78824311]
[1761266572228,0.77788814,3868.0,3867.9,0.78824311]
[1761266572415,0.45388814,3868.0,3867.9,0.78824311]
[1761266572923,0.45388814,3868.0,3866.5,1.3007]
[1761266572924,0.324,3867.9,3867.1,0.5653]
[1761266573223,0.4513,3867.0,3866.9,0.5653]
[1761266573730,0.4513,3867.0,3866.9,0.7864]
[1761266574030,0.7753,3867.0,3866.9,0.56797158]
[1761266574324,0.7753,3867.0,3866.9,0.00267158]
[1761266575330,0.8444,3867.0,3866.9,0.00267158]
[1761266575527,0.8444,3867.0,3866.1,0.5653]
[1761266575528,0.324,3866.9,3866.1,0.5653]
[1761266575723,0.7753,3866.2,3865.6,0.33]
[1761266576529,0.7753,3866.2,3865.6,0.33229424]
[1761266576835,0.324,3866.1,3865.6,0.56759424]
[1761266577030,0.4513,3865.7,3865.6,0.23759424]
[1761266577536,0.2305,3865.7,3865.6,0.78869424]
[1761266577920,0.7753,3865.7,3865.6,0.78869424]
[1761266578126,0.7753,3865.7,3865.6,0.56759424]
[1761266578427,0.4513,3865.7,3865.6,0.78869424]
[1761266578825,0.2305,3865.7,3865.6,0.78869424]
[1761266579331,0.3228,3866.4,3865.7,0.3504]
[1761266579532,2.90452408,3867.3,3866.7,0.3504]
[1761266579533,0.3228,3867.1,3866.7,0.3504]
[1761266579725,0.2234,3867.1,3867.0,0.9244]
[1761266580126,0.3228,3867.5,3867.1,0.3504]
[1761266580321,1.38210053,3867.9,3867.3,0.7846]
[1761266580322,0.46069663,3867.4,3867.3,0.7846]
[1761266580630,0.23729663,3867.4,3867.3,0.7846]
[1761266580825,0.3228,3867.9,3867.3,0.7846]
[1761266581140,0.99780963,3867.8,3867.7,0.5661]
[1761266581327,0.56010963,3867.8,3867.7,0.3504]
[1761266581629,0.23730963,3867.8,3867.7,0.3504]
[1761266583231,0.3228,3867.7,3867.1,0.3504]
[1761266583426,0.3228,3867.5,3867.1,0.3504]
[1761266583629,0.23730963,3867.6,3867.1,0.3504]
[1761266583630,0.3228,3867.3,3867.1,0.3504]
[1761266583935,0.23730963,3867.2,3867.1,0.3504]
[1761266584441,0.56010963,3867.2,3866.6,0.3504]
[1761266584629,0.23730963,3867.1,3866.6,0.3504]
[1761266585536,0.3228,3867.0,3865.9,0.92621038]
[1761266585732,0.3228,3866.8,3866.2,0.3504]
[1761266585931,0.3228,3866.6,3866.2,0.3504]
[1761266586228,0.56010963,3866.5,3866.2,0.3504]
[1761266586433,0.23730963,3866.4,3866.2,0.3504]
[1761266586629,0.56010963,3866.3,3866.2,0.3504]
[1761266586939,0.23730963,3866.3,3866.2,0.3504]
[1761266587342,0.56010963,3866.3,3866.2,0.3504]
[1761266587651,0.3228,3866.2,3865.8,0.3504]
[1761266587833,0.3228,3866.0,3865.8,0.3504]
[1761266588035,0.23730963,3865.9,3865.8,0.3504]
[1761266588235,0.3228,3866.4,3865.8,0.3504]
[1761266588430,0.3228,3866.2,3865.8,0.3504]
[1761266588645,0.23718338,3866.1,3865.8,0.3504]
[1761266589644,0.2234,3865.9,3865.8,0.7846]
[1761266591044,0.46054613,3865.9,3865.8,0.7846]
[1761266591239,0.7605,3865.9,3865.6,0.00229424]
[1761266591444,0.7605,3865.7,3865.6,0.35269424]
[1761266592045,0.4377,3865.7,3865.6,0.78689424]
[1761266592242,0.2234,3866.1,3866.0,0.9244]
[1761266593245,0.46050333,3866.1,3866.0,0.9244]
[1761266593641,0.5462,3866.5,3866.1,0.3504]
[1761266593846,0.7605,3866.5,3866.4,0.5661]
[1761266594050,0.99756803,3866.5,3866.4,0.5661]
[1761266594245,0.67476803,3866.5,3866.4,0.5661]
[1761266594949,0.67476803,3866.5,3866.4,0.7846]
[1761266595147,0.23706803,3866.5,3866.4,0.7846]
[1761266595339,0.9262084,3867.2,3866.8,0.4342]
[1761266595545,0.67470978,3867.1,3867.0,0.3555]
[1761266595847,0.99750978,3867.1,3867.0,0.2157]
[1761266596044,0.99750978,3867.1,3866.8,0.3504]
[1761266596239,0.3228,3866.8,3866.5,0.3555]
[1761266596542,0.2234,3867.2,3867.1,0.4342]
[1761266596747,0.46040518,3867.2,3867.1,0.7846]
[1761266597546,0.67470518,3867.2,3867.1,0.7846]
[1761266597744,0.3228,3867.5,3867.2,0.5661]
[1761266597951,0.9974969,3867.4,3867.3,0.5661]